Cogmind - Beta 16.1 @@@ ROGUE MODE // 2026.02.12 @ 20:14:08 Player: f3-rnm Result: Self-destructed Performance ------------- Evolutions (1) 500 Regions Visited (4) 800 Robots Destroyed (26) 130 Value Destroyed (451) 451 Prototype IDs (26) 520 Alien Tech Used (0) 0 Bonus (300) 300 TOTAL SCORE: 2701 Bonus ------- Aligned with FarCom 300 Cogmind --------- Core Integrity 52/400 Matter 197/300 Energy 100/100 System Corruption 0% Temperature Cool (0) Movement Walking (130) Location -9/Exiles Parts ------- > --- POWER (1) -------- (None) > --- PROPULSION (2) --- Makeshift Leg Advanced Myomer Leg > --- UTILITY (2) ------ Gravity Neutralizer > --- WEAPON (4) ------- XL Autogun Subcomponent XL Autogun Subcomponent XL Autogun Subcomponent > --- INVENTORY (5) ---- High-capacity Matter Pod (0) High-capacity Matter Pod (0) Peak State ------------ > --- POWER ------------ (None) > --- PROPULSION ------- Light Treads Light Treads > --- UTILITY ---------- Improved Heat Sink Gravity Neutralizer > --- WEAPON ----------- XL Autogun Array > --- INVENTORY -------- Advanced Myomer Leg High-capacity Matter Pod High-capacity Matter Pod [Rating: 48] Favorites ----------- Power Light Nuclear Core Engine Light Ion Engine Power Core Light Nuclear Core Propulsion Light Treads Treads Light Treads Leg Advanced Myomer Leg Wheel Wheel Utility Light Armor Plating Device Gravity Neutralizer Storage Huge Storage Unit Processor Targeting Computer Protection Light Armor Plating Weapon Autogun Ballistic Gun Autogun Build | -11 -10 -9 -9 -9 ------- Run | Yrd Mat Mat Min Exi Slots Evolved 2 | . . 2 . . Power . | . . . . . Propulsion . | . . . . . Utility . | . . . . . Weapon 2 | . . 2 . . Parts Attached 25 | 6 5 4 . 10 Power 2 | 1 1 . . . Engine 1 | 1 . . . . Core 1 | . 1 . . . Reactor . | . . . . . Propulsion 6 | 2 . 2 . 2 Treads 2 | 2 . . . . Leg 2 | . . . . 2 Wheel 2 | . . 2 . . Hover . | . . . . . Flight . | . . . . . Utility 6 | 1 2 . . 3 Device 2 | . . . . 2 Storage 2 | 1 1 . . . Processor 1 | . . . . 1 Hackware . | . . . . . Protection 1 | . 1 . . . Artifact . | . . . . . Weapon 11 | 2 2 2 . 5 Energy Gun . | . . . . . Energy Cannon . | . . . . . Ballistic Gun 11 | 2 2 2 . 5 Ballistic Cannon . | . . . . . Launcher . | . . . . . Special Weapon . | . . . . . Impact Weapon . | . . . . . Slashing Weapon . | . . . . . Piercing Weapon . | . . . . . Special Melee Weapon . | . . . . . Unidentified Prototypes 3 | . . . . 3 Parts Lost 6 | . . . . 6 Power 1 | . . . . 1 Propulsion 2 | . . . . 2 Utility 2 | . . . . 2 Weapon 1 | . . . . 1 Highest Loss Streak 4 | . . . . 4 To Critical Strikes . | . . . . . Average Backups 10 | 1 6 8 13 11 Power 2 | . 1 1 2 2 Propulsion 1 | . 1 2 3 1 Utility 2 | . . 2 3 3 Weapon 3 | . 4 3 4 3 Tool/Special . | . . . . . Unused Backups 20 | . 4 . . 16 Power 5 | . . . . 5 Propulsion 1 | . . . . 1 Utility 5 | . . . . 5 Weapon 9 | . 4 . . 5 Tool/Special . | . . . . . Average Slot Usage (%) 87 | . 87 99 100 81 Engine 1 | . 8 . . . Core 8 | . 5 11 11 8 Treads 15 | . 28 10 . 17 Leg 1 | . . . . 2 Wheel 5 | . . 12 22 1 Device 1 | . . . . 2 Storage 9 | . 14 11 11 6 Protection 7 | . 2 11 11 8 Ballistic Gun 35 | . 28 43 44 33 Peak Build Rating 48 | 6 12 17 17 48 Average Rating 21 | 5 8 16 17 27 On Entrance 10 | . 6 12 17 17 Avg Prop Armor Cover (%) . | . . . . . Naked Turns . | . . . . . Heaviest Build 100 | 12 94 100 100 100 Greatest Support 52 | 40 40 40 20 52 Greatest Overweight (x) 4 | . 2 4 4 4 Average Overweight (x) 1 | . . 3 4 1 Largest Inventory Capacity 25 | 8 25 25 25 25 Average Capacity 17 | 7 8 25 25 16 Most Carried 25 | 3 9 12 14 25 Average Carried 10 | 1 6 8 13 12 Final Capacity 25 | 8 25 25 25 5 Final Carried 14 | 3 9 12 14 2 Class Distribution -------------------- 56% | Tank 22% | Gunner 20% | Mutant Dominant Class ---------------- Mutant | -10/Materials Tank | -9/Materials Tank | -9/Mines Tank | -9/Exiles Resources | -11 -10 -9 -9 -9 ----------- Run | Yrd Mat Mat Min Exi Matter Collected 1803 | 211 134 182 267 1009 Remotely . | . . . . . Salvage Created 872 | 19 134 182 227 310 Parts 89 | 2 13 14 17 43 Haulers Intercepted 1 | . . 1 . . Recyclers Shooed 5 | . 3 . 2 . Parts Field Recycled . | . . . . . Retrieved Matter . | . . . . . Parts Self-Destructed . | . . . . . Prevented . | . . . . . Parts Restored . | . . . . . Kills | -11 -10 -9 -9 -9 ------- Run | Yrd Mat Mat Min Exi Combat Hostiles Destroyed 20 | . 5 3 6 6 Guns 20 | . 5 3 6 6 Classes Destroyed 8 | 1 2 2 1 2 Builder 2 | . . 1 1 . Tunneler 2 | 1 . . 1 . Hauler 1 | . . 1 . . Swarmer 6 | . 3 . 3 . Grunt 7 | . 2 3 2 . Duelist 1 | . . . 1 . Zionite 3 | . . . . 3 Assembled 5 | . . . . 5 Best Kill Streak 5 | 1 2 2 3 5 Combat Bots Only 5 | . 2 2 3 5 Max Kills in Single Turn 2 | 1 2 1 2 2 Gunslinging 1 | . 1 . 1 . Exploded . | . . . . . Melee . | . . . . . Uniques/NPCs Destroyed 4 | . . . . 4 8R-AWN (-9/Exiles) EX-BIN (-9/Exiles) EX-HEX (-9/Exiles) EX-DEC (-9/Exiles) Combat | -11 -10 -9 -9 -9 -------- Run | Yrd Mat Mat Min Exi Hostile Shots Fired 91 | . 15 7 15 54 Missed 20 | . 5 2 4 9 Hits 71 | . 10 5 11 45 Projectile 71 | . 10 5 11 45 Critical Strikes 15 | . . . . 15 Damage Taken 1516 | . 109 76 122 1209 Core 369 | . 21 . 45 303 Absorbed by Shields . | . . . . . Core Remaining (%) 95 | 100 91 . . . Volleys Fired 105 | 2 15 8 12 68 Largest 4 | 2 2 4 4 3 Hottest 92 | 40 46 92 92 60 Shots Fired 230 | 4 30 32 48 116 Gun 230 | 4 30 32 48 116 Cannon . | . . . . . Launcher . | . . . . . Special . | . . . . . Kinetic 230 | 4 30 32 48 116 Thermal . | . . . . . Explosive . | . . . . . Electromagnetic . | . . . . . Robot Hit Streak 8 | 1 3 8 3 7 Robot Miss Streak 9 | 1 3 1 7 9 Penetration Max . | . . . . . Secondary Targets 3 | . 1 . 1 1 Max Gunslinging Chain 1 | . 1 . 1 1 Shots Hit Robots 139 | 2 16 20 22 79 Core Hits 56 | 1 7 7 11 30 Critical Kills 1 | . . . 1 . Critical Parts Destroyed . | . . . . . Critical Strikes 1 | . . . 1 . Destroy 1 | . . . 1 . Melee Attacks . | . . . . . Impact . | . . . . . Slashing . | . . . . . Piercing . | . . . . . Sneak Attacks . | . . . . . Combat Hostiles . | . . . . . Follow-up Attacks . | . . . . . Damage Inflicted 3889 | 46 229 304 348 2962 Guns 3876 | 46 229 304 335 2962 Cannons . | . . . . . Explosions . | . . . . . Melee . | . . . . . Ramming 13 | . . . 13 . Kinetic 3876 | 46 229 304 335 2962 Thermal . | . . . . . Explosive . | . . . . . Electromagnetic . | . . . . . Impact . | . . . . . Slashing . | . . . . . Piercing . | . . . . . Highest Corruption . | . . . . . Average Corruption . | . . . . . Corruption Purged . | . . . . . Corruption Blocked . | . . . . . Overload Shots . | . . . . . Overflow Damage . | . . . . . Projectiles . | . . . . . Explosions . | . . . . . Melee . | . . . . . Knockbacks . | . . . . . Impact . | . . . . . Kinetic . | . . . . . Secondary . | . . . . . Self-Inflicted Damage 6 | . . . 6 . Shots . | . . . . . Rammed 1 | . . . 1 . Targets Rammed 1 | . . . 1 . Kicked . | . . . . . Crushed . | . . . . . Highest Temperature 414 | . 31 197 332 414 Average Temperature 93 | . 9 67 114 109 Received Heat Transfer 120 | . 36 36 48 . Effects 1 | . . . 1 . Energy Bleed 1 | . . . 1 . Siege Activations . | . . . . . Martial Activations . | . . . . . Shielding Activations . | . . . . . Robots Disrupted . | . . . . . Combat Hostiles . | . . . . . Robots Corrupted . | . . . . . Combat Hostiles . | . . . . . Parts Fried . | . . . . . Impact Corruptions . | . . . . . Robots Melted . | . . . . . Combat Hostiles . | . . . . . Parts Melted . | . . . . . Heat Transferred . | . . . . . Parts Sabotaged . | . . . . . Parts Stolen . | . . . . . Parts Stripped . | . . . . . Power Chain Reactions . | . . . . . Alert | -11 -10 -9 -9 -9 ------- Run | Yrd Mat Mat Min Exi Maximum Alert Level . | . . . . . Low Security (%) 100 | 100 100 100 100 . Level 1 . | . . . . . Level 2 . | . . . . . Level 3 . | . . . . . Level 4 . | . . . . . Level 5 . | . . . . . High Security . | . . . . . Max Security . | . . . . . Peak Influence 100 | 5 65 70 100 . Initial 15 | . . . 15 . Average 25 | . 19 23 38 . Influence Increases 402 | 5 135 112 150 . Destroy 0b10 Robot/C 280 | . 100 60 120 . Destroy 0b10 Robot/NC 25 | 5 . 10 10 . Destroy Leader 52 | . 20 12 20 . Disable Machine 30 | . . 30 . . Lose Combat Pursuer 15 | . 15 . . . Influence Decreases 402 | 5 135 72 190 . Entered New Map 25 | . . . 25 . Time Decay 377 | 5 135 72 165 . Squads Dispatched 2 | . 2 . . . Investigation . | . . . . . Extermination . | . . . . . Reinforcement 2 | . 2 . . . Assault . | . . . . . Garrison . | . . . . . Intercept . | . . . . . Searches Triggered . | . . . . . Construction Impeded . | . . . . . Haulers Reinforced . | . . . . . Active Scanning Responses . | . . . . . Cargo Convoy Interrupts . | . . . . . Stealth | -11 -10 -9 -9 -9 --------- Run | Yrd Mat Mat Min Exi Distress Signals 3 | . 1 2 . . Communications Jammed . | . . . . . Distress Signals . | . . . . . Times Spotted 43 | . 10 7 6 20 Peak Tracking Total 9 | . 4 4 3 9 Tactical Retreats 6 | . 1 . . 5 Traps | -11 -10 -9 -9 -9 ------- Run | Yrd Mat Mat Min Exi Traps Triggered . | . . . . . Indirectly . | . . . . . Trap Hack Attempts . | . . . . . Triggered . | . . . . . Disarmed . | . . . . . Reprogrammed . | . . . . . Reused . | . . . . . Traps Extracted . | . . . . . Installed . | . . . . . Triggered . | . . . . . Machines | -11 -10 -9 -9 -9 ---------- Run | Yrd Mat Mat Min Exi Machines Disabled 12 | . . 2 . 10 Max in Single Turn 2 | . . 2 . 2 Machines Repaired . | . . . . . Machines Dismantled . | . . . . . Machines Sabotaged . | . . . . . Overloaded Fab Kills . | . . . . . Hacking | -11 -10 -9 -9 -9 --------- Run | Yrd Mat Mat Min Exi Machines Accessed 2 | . . . . 2 Terminals . | . . . . . Fabricators . | . . . . . Repair Stations . | . . . . . Recycling Units . | . . . . . Scanalyzers . | . . . . . Garrison Access . | . . . . . Total Hacks 24 | . . . . 24 Successful 24 | . . . . 24 Failed . | . . . . . Catastrophic . | . . . . . Database Lockouts . | . . . . . Manual 1 | . . . . 1 Terminals . | . . . . . Fabricators . | . . . . . Repair Stations . | . . . . . Recycling Units . | . . . . . Scanalyzers . | . . . . . Garrison Access . | . . . . . Terminal Hacks 24 | . . . . 24 Record 23 | . . . . 23 Proto ID Catalog 1 | . . . . 1 Fabricator Hacks . | . . . . . Repair Station Hacks . | . . . . . Recycling Unit Hacks . | . . . . . Scanalyzer . | . . . . . Garrison Access Hacks . | . . . . . Unauthorized Hacks . | . . . . . Terminals . | . . . . . Fabricators . | . . . . . Repair Stations . | . . . . . Recycling Units . | . . . . . Scanalyzers . | . . . . . Garrison Access . | . . . . . Data Cores Recovered . | . . . . . Used . | . . . . . Hacking Detections . | . . . . . Full Trace Events . | . . . . . Feedback Events . | . . . . . Feedback Blocked . | . . . . . Robot Schematics Acquired . | . . . . . Robots Built . | . . . . . Authchips . | . . . . . Time . | . . . . . Total Robot Build Rating . | . . . . . Part Schematics Acquired . | . . . . . Parts Built . | . . . . . Authchips . | . . . . . Time . | . . . . . Total Part Build Rating . | . . . . . Part Studies Acquired . | . . . . . Parts Repaired . | . . . . . Time . | . . . . . Parts Recycled . | . . . . . Recycled Matter . | . . . . . Retrieved Matter . | . . . . . Retrieved Components . | . . . . . Parts Scanalyzed . | . . . . . Part Schematics Acquired . | . . . . . Parts Damaged . | . . . . . Bothacking | -11 -10 -9 -9 -9 ------------ Run | Yrd Mat Mat Min Exi Used RIF Installer . | . . . . . Robots Hacked . | . . . . . Non-combat . | . . . . . Combat . | . . . . . Robot Hacks Applied . | . . . . . Relay Couplers Released . | . . . . . Fabnet Peak Effective % . | . . . . . Robots Rewired . | . . . . . Allies Hacked . | . . . . . Hacks Repelled . | . . . . . Allies | -11 -10 -9 -9 -9 -------- Run | Yrd Mat Mat Min Exi Total Allies . | . . . . . Largest Group . | . . . . . Highest-Rated Group . | . . . . . Highest-Rated Ally . | . . . . . Total Orders . | . . . . . Ally Attacks . | . . . . . Total Damage . | . . . . . Kills . | . . . . . Allies Corrupted . | . . . . . Allies Melted . | . . . . . Intel | -11 -10 -9 -9 -9 ------- Run | Yrd Mat Mat Min Exi Active Infowar (turns) . | . . . . . Robot Analysis Total . | . . . . . Derelict Logs Recovered . | . . . . . Drone Launches . | . . . . . Drone Recoveries . | . . . . . Exploration | -11 -10 -9 -9 -9 ------------- Run | Yrd Mat Mat Min Exi Turns Passed 2693 | 88 474 207 441 1483 Spaces Moved 1314 | 48 252 95 290 629 Core 10 | 5 . . . 5 Treads 755 | 43 252 24 . 436 Legs 136 | . . . . 136 Wheels 413 | . . 71 290 52 Hover . | . . . . . Flight . | . . . . . Fastest Speed 50 | 50 160 140 140 50 Average Speed 182 | 148 164 185 140 212 Slowest Speed 320 | 160 320 320 140 320 Overloaded Moves . | . . . . . Propulsion Burnouts . | . . . . . Robots Hopped . | . . . . . Potential Cave-ins . | . . . . . Cave-ins Triggered . | . . . . . Exploration Rate (%) 40 | 3 42 12 59 86 Regions Visited 4 Branch Regions 2 Pre-discovered Areas 1 | . . . . 1 Known Exits Taken . | . . . . . Unknown Exits Taken 4 | 1 1 1 1 . Scrap Searched 1 | . . . 1 . Spaces Dug . | . . . . . Terrain Destroyed 21 | . . . . 21 Melee . | . . . . . Projectile 21 | . . . . 21 AOE . | . . . . . Terrain Rammed . | . . . . . Walls Destroyed . | . . . . . Machines Disabled . | . . . . . Actions | -11 -10 -9 -9 -9 --------- Run | Yrd Mat Mat Min Exi Total 1518 | 58 291 111 304 754 Wait 16 | . . . . 16 Move 1310 | 47 251 94 289 629 Hop . | . . . . . Pick Up 36 | 3 12 5 2 14 Fast Attach 15 | 6 1 . . 8 Attach 5 | . . 2 . 3 Detach 1 | . . . . 1 Swap 8 | . 4 2 . 2 Drop 21 | . 8 . . 13 Fire 105 | 2 15 8 12 68 Melee . | . . . . . Ram 1 | . . . 1 . Kick . | . . . . . Crush . | . . . . . Escape Stasis . | . . . . . Rewire . | . . . . . Trap . | . . . . . Miscellaneous . | . . . . . Route ------- -11/Scrapyard -10/Materials -9/Materials -9/Mines (discovered 2 exits: [*Mat] / *Exi) -9/Exiles (discovered 1 exit: [*Min]) History --------- Turn | Location | Event 20 | -11/Scrapyard | Discovered new exit (range 16) 89 | -11/Scrapyard | Entered Materials 310 | -10/Materials | Build established: Mutant 508 | -10/Materials | Discovered new exit (range 16) 563 | -10/Materials | Entered another Materials area 563 | -9/Materials | Evolved 2 slots: Weapon x2 718 | -9/Materials | Discovered new exit (range 11) 770 | -9/Materials | Entered Mines 790 | -9/Mines | Discovered new exit (range 13) 865 | -9/Mines | Build established: Tank 1165 | -9/Mines | Deemed a non-threat by the Exiles lab entrance 1166 | -9/Mines | Discovered new exit (range 5) 1211 | -9/Mines | Entered Exiles 1249 | -9/Exiles | Met 8R-AWN 1272 | -9/Exiles | Met EX-HEX 1601 | -9/Exiles | Met EX-BIN 1639 | -9/Exiles | Aligned with FarCom system 1642 | -9/Exiles | Given EX-Vault access code 1722 | -9/Exiles | Opened EX-Vault 1741 | -9/Exiles | Found XL Autogun Array 1746 | -9/Exiles | Found Lightpack 2.0 1763 | -9/Exiles | Found Cloak of Protection 1821 | -9/Exiles | Warned to stay clear of 0b10 Research branches 1911 | -9/Exiles | Met EX-DEC 1940 | -9/Exiles | Learned location of Zion (-6) 2029 | -9/Exiles | Discovered new exit (range 14) 2208 | -9/Exiles | Attacked by the Exiles 2335 | -9/Exiles | Destroyed 8R-AWN 2470 | -9/Exiles | Core integrity fell below 50% 2474 | -9/Exiles | Core integrity fell below 20% 2502 | -9/Exiles | Lost 4 parts (2n1u1w) 2560 | -9/Exiles | Destroyed EX-BIN 2573 | -9/Exiles | Destroyed EX-HEX 2601 | -9/Exiles | Build established: Gunner 2618 | -9/Exiles | Destroyed EX-DEC 2694 | -9/Exiles | Self-destructed Last Messages --------------- 02560_ EX-BIN destroyed. 02569_ Machine disabled. 02573_ EX-HEX destroyed. 02573_ Switching to secondary target: EX-DEC. 02573_ Testing Apparatus damaged. 02587_ ZX-C33 destroyed. 02589_ W1-DM0 destroyed. 02598_ Machine disabled. 02611_ Destroyed Prototype Energy Gun. 02615_ Dropped Hcp. Matter Pod. 02616_ Extracted 128 matter. 02617_ Acquired Hcp. Matter Pod. 02618_ Destroyed Prototype Engine. 02618_ EX-DEC: "This would never have happened if OCT was still around!" 02618_ EX-DEC destroyed. 02625_ Acquired 16 matter. 02626_ Acquired 13 matter. 02629_ Acquired Mak. Leg. 02637_ Acquired 29 matter. 02641_ Acquired 26 matter. Map ----- +----------------------------------------------------+ | ???????????????????????????????#" " | | ???????????????????????????????#" " | | ???????????????????????????????#" """" | | ???????????????????????????????#""" """ | | ???????????????????????????????## ""# | | ????????????????????????????????#"" """## | | ????????????????????????????????##""" ##? | | ?????????????????????????????????##"""" ##?? | | ??????????????????????????????????### #??? | | ????????????????????????????????????##### ##??? | | ????????????????????????????????????????## #???? | | ?????????????????????????????????????????# #???? | | ?????????????????????????????????????????# #???? | | ?????????????????????????????????????????# #???? | | ????????????????????????????????###??????# #???? | | ??????????""??????????""""????#""""""????# #???? | | ?????????"" ?????????""""""???#"""""""???# #???? | | ?????????" ???#"""""""" "???#" """"#??# #???? | | ?????????"" ???#""#""" """???#"" """???# #???? | | ?????????"" ??#""#"" ""????"" ""???# #???? | | ??????#####"""###""###"""########"""###### ##### | | ???#"""" "" """"""" """"""" """"" %* """"" | | ???#" " " "" """" | | ?????"" !!!!!!!! | | ?????""" !!%=!&!*!! = * | | ????"" !!!!! =! ! @ * | | ????""" ""!!!!!=! = "" | | ????"" """ "" "!!! ! " """"" " """ """ | | ?????#?####"""########"""###""###"""########"""### | | ?????????"" ??????"" ""#""#"" ""?????" ""? | | ?????????""" ??????#""" ""#""#""" ""#????" """# | | ???????????????????#" """"""""#" " "#????""""""# | | ????????????????????"""""""????"""""""#????" """"? | | ????????????????????"""""""????"""""""#????"""""?? | | ?????????????????????????????????####???????##???? | | ?????????????????????????????????????????????????? | | ?????????????????????????????????????????????????? | | ?????????????????????????????????????????????????? | | ?????????????????????????????????????????????????? | | | | | | | | | | | | | | | | | | | | | | | +----------------------------------------------------+ Best States ------------- Heat Dissipation 42 Energy Generation 14 Energy Capacity 160 Matter Stores 300 Matter Capacity 300 Sight Range 16 Terrain Scan Density 10 Additional Mass Support 12 Armor Coverage 150 Evasion (%) 55 Targeting Accuracy 5 Recoil Reduction 2 Item Schematics ----------------- None Robot Schematics ------------------ None Fabricated ------------ Nothing Repaired ---------- Nothing Studied --------- None Alien Tech Used ----------------- None Achievements -------------- None Challenges ------------ None Game ------ Seed ZipDataDoomcannon Manual? 0 Play Time 00:10:43 Cumulative 430.8 hours Start 2026.02.08 @ 17:44:56 End 2026.02.12 @ 20:14:08 Sessions 3 Manual Loads 0 Difficulty Rogue Special Mode None Game No. 388 Rogue 352 Adventurer 36 Explorer 0 Win Type - Total 17 Types 8/0/9/0/0/0/0/0/0/0 Lore% 72 Gallery% 82 Achievement% 65 Wizard Run 0 Options --------- Layout 0 ASCII 0 Keyboard 0 Movement Mouse Keybinds 0 Fullscreen 1 Font 18/SmallcapsGlow Map View 76x50 Zoom Use 0% Tactical HUD 1 Map Filters NONE Filters NONE Steam 1 RUN: d3faa5a9-4a78-4665-b949-02cf69755f75